[Event "Titled Tuesday Blitz May 30 Late 2023"]
[White "Liu, Kelsey"]
[Black "Papp, Petra"]
[WhiteFideId "30944481"]
[BlackFideId "739049"]
[WhiteElo "2215"]
[BlackElo "2259"]
[Result "1-0"]
[Round "04"]
[TimeControl "180+2"]
[Date "2023.05.31"]
[WhiteClock "0:00:07"]
[BlackClock "0:00:01"]

1. d4 {[%clk 0:02:53]}  d5 {[%clk 0:02:48]} 2. Nf3 {[%clk 0:02:52]}  Nf6 {[%clk 0:02:47]} 3. Bf4 {[%clk 0:02:50]}  c5 {[%clk 0:02:43]} 4. c3 {[%clk 0:02:48]}  Nc6 {[%clk 0:02:42]} 5. e3 {[%clk 0:02:46]}  Qb6 {[%clk 0:02:40]} 6. Qb3 {[%clk 0:02:46]}  c4 {[%clk 0:02:40]} 7. Qxb6 {[%clk 0:02:46]}  axb6 {[%clk 0:02:36]} 8. Na3 {[%clk 0:02:46]}  Ra5 {[%clk 0:02:34]} 9. Bc7 {[%clk 0:02:21]}  Ra6 {[%clk 0:02:28]} 10. Nb5 {[%clk 0:02:17]}  Kd7 {[%clk 0:02:21]} 11. Ng5 {[%clk 0:02:04]}  Ra5 {[%clk 0:02:12]} 12. a4 {[%clk 0:01:51]}  Ne8 {[%clk 0:02:01]} 13. Nxf7 {[%clk 0:01:45]}  Nxc7 {[%clk 0:01:55]} 14. Nxc7 {[%clk 0:01:44]}  Kxc7 {[%clk 0:01:54]} 15. Nxh8 {[%clk 0:01:43]}  Be6 {[%clk 0:01:55]} 16. h4 {[%clk 0:01:28]}  b5 {[%clk 0:01:49]} 17. Be2 {[%clk 0:01:13]}  bxa4 {[%clk 0:01:46]} 18. h5 {[%clk 0:01:13]}  b5 {[%clk 0:01:40]} 19. h6 {[%clk 0:01:09]}  g5 {[%clk 0:01:31]} 20. Bh5 {[%clk 0:01:08]}  Bxh6 {[%clk 0:01:22]} 21. Bf7 {[%clk 0:01:08]}  Bxf7 {[%clk 0:01:17]} 22. Nxf7 {[%clk 0:01:09]}  Bf8 {[%clk 0:01:16]} 23. Rxh7 {[%clk 0:01:09]}  b4 {[%clk 0:01:16]} 24. Nxg5 {[%clk 0:01:06]}  Kd6 {[%clk 0:01:12]} 25. Kd2 {[%clk 0:00:57]}  a3 {[%clk 0:01:09]} 26. bxa3 {[%clk 0:00:56]}  bxa3 {[%clk 0:01:05]} 27. e4 {[%clk 0:00:22]}  a2 {[%clk 0:00:52]} 28. e5+ {[%clk 0:00:22]}  Kd7 {[%clk 0:00:52]} 29. Rh8 {[%clk 0:00:18]}  Bg7 {[%clk 0:00:48]} 30. Rh7 {[%clk 0:00:18]}  Bf8 {[%clk 0:00:38]} 31. f4 {[%clk 0:00:18]}  Na7 {[%clk 0:00:35]} 32. Kc2 {[%clk 0:00:17]}  Nb5 {[%clk 0:00:35]} 33. Kb2 {[%clk 0:00:16]}  Kc6 {[%clk 0:00:23]} 34. Rxa2 {[%clk 0:00:16]}  Rxa2+ {[%clk 0:00:23]} 35. Kxa2 {[%clk 0:00:17]}  Nxc3+ {[%clk 0:00:23]} 36. Kb2 {[%clk 0:00:16]}  Ne2 {[%clk 0:00:23]} 37. Nf3 {[%clk 0:00:15]}  e6 {[%clk 0:00:20]} 38. Rf7 {[%clk 0:00:13]}  Bb4 {[%clk 0:00:17]} 39. g4 {[%clk 0:00:13]}  c3+ {[%clk 0:00:09]} 40. Kc2 {[%clk 0:00:14]}  Ng3 {[%clk 0:00:08]} 41. g5 {[%clk 0:00:11]}  Nf1 {[%clk 0:00:08]} 42. Ne1 {[%clk 0:00:08]}  Ne3+ {[%clk 0:00:07]} 43. Kd3 {[%clk 0:00:08]}  Nf5 {[%clk 0:00:04]} 44. g6 {[%clk 0:00:07]}  c2 {[%clk 0:00:02]} 45. Nxc2 {[%clk 0:00:07]}  Ba5 {[%clk 0:00:02]} 46. g7 {[%clk 0:00:06]}  Nh6 {[%clk 0:00:02]} 47. Rf8 {[%clk 0:00:05]}  Kd7 {[%clk 0:00:01]} 48. g8=Q {[%clk 0:00:05]}  Nxg8 {[%clk 0:00:01]} 49. Rxg8 {[%clk 0:00:06]}  Ke7 {[%clk 0:00:02]} 50. Ra8 {[%clk 0:00:06]}  Bb6 {[%clk 0:00:01]} 51. Ra6 {[%clk 0:00:07]}  Bd8 {[%clk 0:00:01]} 52. Ra7+ {[%clk 0:00:07]} 1-0


[Site "https://www.chess.com"]

[Event "Titled Tuesday Blitz May 30 Late 2023"]
[White "Krzywda, Andrzej"]
[Black "rionelG"]
[WhiteFideId "1114565"]
[WhiteElo "2155"]
[BlackElo "2159"]
[Result "0-1"]
[Round "04"]
[TimeControl "180+2"]
[Date "2023.05.31"]
[WhiteClock "0:00:01"]
[BlackClock "0:00:16"]

1. c4 {[%clk 0:02:58]}  Nf6 {[%clk 0:02:58]} 2. g3 {[%clk 0:02:59]}  g6 {[%clk 0:02:58]} 3. Bg2 {[%clk 0:02:59]}  Bg7 {[%clk 0:02:59]} 4. Nf3 {[%clk 0:02:59]}  O-O {[%clk 0:03:00]} 5. O-O {[%clk 0:03:00]}  d6 {[%clk 0:03:00]} 6. Nc3 {[%clk 0:03:01]}  e5 {[%clk 0:02:57]} 7. Rb1 {[%clk 0:03:01]}  Nc6 {[%clk 0:02:57]} 8. b4 {[%clk 0:03:01]}  h6 {[%clk 0:02:54]} 9. b5 {[%clk 0:03:00]}  Ne7 {[%clk 0:02:54]} 10. d3 {[%clk 0:02:58]}  c6 {[%clk 0:02:54]} 11. bxc6 {[%clk 0:02:57]}  bxc6 {[%clk 0:02:55]} 12. Ba3 {[%clk 0:02:56]}  Ne8 {[%clk 0:02:43]} 13. Nd2 {[%clk 0:02:37]}  Be6 {[%clk 0:02:42]} 14. Qa4 {[%clk 0:02:34]}  Rb8 {[%clk 0:02:34]} 15. Rxb8 {[%clk 0:02:30]}  Qxb8 {[%clk 0:02:33]} 16. Rb1 {[%clk 0:02:31]}  Qc7 {[%clk 0:02:32]} 17. Qa6 {[%clk 0:02:28]}  Bc8 {[%clk 0:02:27]} 18. Qa4 {[%clk 0:02:23]}  Bd7 {[%clk 0:02:25]} 19. Qb3 {[%clk 0:02:21]}  f5 {[%clk 0:02:14]} 20. Qb7 {[%clk 0:02:17]}  e4 {[%clk 0:02:09]} 21. Na4 {[%clk 0:02:09]}  c5 {[%clk 0:02:04]} 22. Qxc7 {[%clk 0:02:05]}  Nxc7 {[%clk 0:02:04]} 23. Rb7 {[%clk 0:02:01]}  Rc8 {[%clk 0:02:01]} 24. Nb2 {[%clk 0:01:47]}  exd3 {[%clk 0:01:55]} 25. Nxd3 {[%clk 0:01:39]}  Nc6 {[%clk 0:01:36]} 26. Bxc6 {[%clk 0:01:24]}  Bxc6 {[%clk 0:01:35]} 27. Rxa7 {[%clk 0:01:25]}  Ne6 {[%clk 0:01:27]} 28. e3 {[%clk 0:01:18]}  Ng5 {[%clk 0:01:24]} 29. Nf4 {[%clk 0:01:11]}  Rb8 {[%clk 0:01:14]} 30. Nb3 {[%clk 0:01:09]}  Nf3+ {[%clk 0:01:08]} 31. Kf1 {[%clk 0:01:09]}  Ne5 {[%clk 0:01:03]} 32. Bb2 {[%clk 0:00:58]}  g5 {[%clk 0:00:57]} 33. Ne6 {[%clk 0:00:47]}  Bh8 {[%clk 0:00:56]} 34. f4 {[%clk 0:00:46]}  Nxc4 {[%clk 0:00:53]} 35. Bxh8 {[%clk 0:00:45]}  Kxh8 {[%clk 0:00:54]} 36. Kf2 {[%clk 0:00:37]}  g4 {[%clk 0:00:48]} 37. Ng7 {[%clk 0:00:34]}  Be4 {[%clk 0:00:45]} 38. Nh5 {[%clk 0:00:28]}  Nb2 {[%clk 0:00:43]} 39. Nf6 {[%clk 0:00:27]}  Rb7 {[%clk 0:00:38]} 40. Ra6 {[%clk 0:00:13]}  c4 {[%clk 0:00:33]} 41. Nd4 {[%clk 0:00:09]}  c3 {[%clk 0:00:28]} 42. Ne6 {[%clk 0:00:08]}  Re7 {[%clk 0:00:22]} 43. Rxd6 {[%clk 0:00:06]}  Nd3+ {[%clk 0:00:16]} 44. Kf1 {[%clk 0:00:01]}  Rxe6 {[%clk 0:00:15]} 45. Rxe6 {[%clk 0:00:01]}  c2 {[%clk 0:00:16]} 0-1


[Site "https://www.chess.com"]

[Event "Titled Tuesday Blitz May 30 Late 2023"]
[White "Oliveira, Tiago Batista"]
[Black "Sarkar, Justin"]
[WhiteFideId "2108291"]
[BlackFideId "2010011"]
[WhiteElo "1962"]
[BlackElo "2168"]
[Result "1-0"]
[Round "04"]
[TimeControl "180+2"]
[Date "2023.05.31"]
[WhiteClock "0:00:10"]
[BlackClock "0:00:01"]

1. d4 {[%clk 0:03:00]}  Nf6 {[%clk 0:02:53]} 2. c4 {[%clk 0:02:58]}  g6 {[%clk 0:02:52]} 3. Nf3 {[%clk 0:02:57]}  Bg7 {[%clk 0:02:52]} 4. Nc3 {[%clk 0:02:56]}  d6 {[%clk 0:02:47]} 5. e4 {[%clk 0:02:51]}  O-O {[%clk 0:02:45]} 6. Be2 {[%clk 0:02:50]}  Nbd7 {[%clk 0:02:45]} 7. Be3 {[%clk 0:02:49]}  e5 {[%clk 0:02:37]} 8. Qc2 {[%clk 0:02:40]}  a5 {[%clk 0:02:05]} 9. Rd1 {[%clk 0:02:39]}  Ng4 {[%clk 0:01:51]} 10. Bg5 {[%clk 0:02:38]}  f6 {[%clk 0:01:45]} 11. Bc1 {[%clk 0:02:38]}  Nh6 {[%clk 0:01:30]} 12. dxe5 {[%clk 0:02:35]}  fxe5 {[%clk 0:01:23]} 13. Nd5 {[%clk 0:02:12]}  Nf7 {[%clk 0:01:16]} 14. h4 {[%clk 0:02:07]}  Nc5 {[%clk 0:01:06]} 15. Ng5 {[%clk 0:01:53]}  h6 {[%clk 0:01:00]} 16. Nxf7 {[%clk 0:01:48]}  Rxf7 {[%clk 0:01:00]} 17. a3 {[%clk 0:01:13]}  a4 {[%clk 0:00:52]} 18. Be3 {[%clk 0:01:09]}  Qf8 {[%clk 0:00:46]} 19. g4 {[%clk 0:00:30]}  Bd7 {[%clk 0:00:36]} 20. Nxc7 {[%clk 0:00:25]}  Rc8 {[%clk 0:00:04]} 21. Nd5 {[%clk 0:00:25]}  b5 {[%clk 0:00:03]} 22. Qb1 {[%clk 0:00:17]}  Rb8 {[%clk 0:00:01]} 23. cxb5 {[%clk 0:00:16]}  Bxb5 {[%clk 0:00:01]} 24. Nc3 {[%clk 0:00:15]}  Bxe2 {[%clk 0:00:01]} 25. Kxe2 {[%clk 0:00:15]}  Nb3 {[%clk 0:00:01]} 26. Qd3 {[%clk 0:00:13]}  Nd4+ {[%clk 0:00:01]} 27. Bxd4 {[%clk 0:00:13]}  exd4 {[%clk 0:00:01]} 28. Qc4 {[%clk 0:00:10]} 1-0


[Site "https://www.chess.com"]

[Event "Titled Tuesday Blitz May 30 Late 2023"]
[White "deloewre"]
[Black "Dubreuil, Julien"]
[BlackFideId "621285"]
[WhiteElo "2095"]
[BlackElo "2286"]
[Result "1-0"]
[Round "04"]
[TimeControl "180+2"]
[Date "2023.05.31"]
[WhiteClock "0:01:03"]
[BlackClock "0:01:37"]

1. d4 {[%clk 0:03:00]}  d5 {[%clk 0:02:59]} 2. Bf4 {[%clk 0:02:58]}  Nf6 {[%clk 0:02:58]} 3. e3 {[%clk 0:02:57]}  c5 {[%clk 0:02:58]} 4. c3 {[%clk 0:02:54]}  Nc6 {[%clk 0:02:59]} 5. Nd2 {[%clk 0:02:53]}  g6 {[%clk 0:02:58]} 6. h3 {[%clk 0:02:51]}  Bg7 {[%clk 0:02:58]} 7. Ngf3 {[%clk 0:02:49]}  O-O {[%clk 0:02:58]} 8. Be2 {[%clk 0:02:47]}  Nd7 {[%clk 0:02:58]} 9. O-O {[%clk 0:02:43]}  e5 {[%clk 0:02:58]} 10. dxe5 {[%clk 0:02:42]}  Ndxe5 {[%clk 0:02:59]} 11. Nxe5 {[%clk 0:02:38]}  Nxe5 {[%clk 0:02:57]} 12. Nf3 {[%clk 0:02:37]}  Nc6 {[%clk 0:02:57]} 13. Qd2 {[%clk 0:02:29]}  b6 {[%clk 0:02:48]} 14. Rfd1 {[%clk 0:02:26]}  Bb7 {[%clk 0:02:48]} 15. a4 {[%clk 0:02:10]}  a6 {[%clk 0:02:44]} 16. Bf1 {[%clk 0:02:02]}  Na5 {[%clk 0:02:38]} 17. Qc2 {[%clk 0:01:56]}  Qe7 {[%clk 0:02:36]} 18. b3 {[%clk 0:01:52]}  Rac8 {[%clk 0:02:28]} 19. Rab1 {[%clk 0:01:50]}  h6 {[%clk 0:02:24]} 20. Bh2 {[%clk 0:01:47]}  Rfe8 {[%clk 0:02:23]} 21. Qe2 {[%clk 0:01:38]}  Nc6 {[%clk 0:02:17]} 22. Qd3 {[%clk 0:01:34]}  Rcd8 {[%clk 0:02:13]} 23. Rbc1 {[%clk 0:01:26]}  Qf6 {[%clk 0:02:12]} 24. Qb1 {[%clk 0:01:20]}  Re7 {[%clk 0:01:58]} 25. b4 {[%clk 0:01:17]}  Ba8 {[%clk 0:01:51]} 26. bxc5 {[%clk 0:01:15]}  bxc5 {[%clk 0:01:52]} 27. Qb6 {[%clk 0:01:13]}  Ne5 {[%clk 0:01:40]} 28. Qxd8+ {[%clk 0:01:10]}  Kh7 {[%clk 0:01:39]} 29. Nxe5 {[%clk 0:01:08]}  Rxe5 {[%clk 0:01:36]} 30. Qxf6 {[%clk 0:01:07]}  Bxf6 {[%clk 0:01:37]} 31. Bxe5 {[%clk 0:01:05]}  Bxe5 {[%clk 0:01:37]} 32. Bxa6 {[%clk 0:01:03]} 1-0


[Site "https://www.chess.com"]

[Event "Titled Tuesday Blitz May 30 Late 2023"]
[White "KVAIDAN"]
[Black "Ricaurte Lopez, Juan Carlos"]
[BlackFideId "3600327"]
[WhiteElo "2284"]
[BlackElo "2200"]
[Result "1-0"]
[Round "04"]
[TimeControl "180+2"]
[Date "2023.05.31"]
[WhiteClock "0:01:52"]
[BlackClock "0:00:04"]

1. b3 {[%clk 0:02:58]}  d5 {[%clk 0:02:55]} 2. Bb2 {[%clk 0:02:56]}  c5 {[%clk 0:02:54]} 3. e3 {[%clk 0:02:56]}  a6 {[%clk 0:02:53]} 4. f4 {[%clk 0:02:56]}  Nc6 {[%clk 0:02:52]} 5. Nf3 {[%clk 0:02:57]}  Bg4 {[%clk 0:02:46]} 6. h3 {[%clk 0:02:56]}  Bxf3 {[%clk 0:02:46]} 7. Qxf3 {[%clk 0:02:57]}  Nf6 {[%clk 0:02:43]} 8. g4 {[%clk 0:02:55]}  e6 {[%clk 0:02:32]} 9. g5 {[%clk 0:02:54]}  Ne4 {[%clk 0:02:29]} 10. Bd3 {[%clk 0:02:53]}  Nd6 {[%clk 0:02:03]} 11. h4 {[%clk 0:02:52]}  c4 {[%clk 0:01:57]} 12. Bf1 {[%clk 0:02:49]}  Nb4 {[%clk 0:01:50]} 13. Na3 {[%clk 0:02:47]}  b5 {[%clk 0:01:44]} 14. h5 {[%clk 0:02:45]}  Rc8 {[%clk 0:01:36]} 15. h6 {[%clk 0:02:45]}  Rg8 {[%clk 0:01:22]} 16. hxg7 {[%clk 0:02:40]}  Bxg7 {[%clk 0:01:20]} 17. Bxg7 {[%clk 0:02:37]}  Rxg7 {[%clk 0:01:21]} 18. c3 {[%clk 0:02:31]}  Qa5 {[%clk 0:01:14]} 19. cxb4 {[%clk 0:02:23]}  Qxa3 {[%clk 0:01:12]} 20. bxc4 {[%clk 0:02:20]}  bxc4 {[%clk 0:01:01]} 21. f5 {[%clk 0:02:18]}  Nxf5 {[%clk 0:00:51]} 22. Bh3 {[%clk 0:02:18]}  Qb2 {[%clk 0:00:46]} 23. Rd1 {[%clk 0:02:17]}  Qe5 {[%clk 0:00:42]} 24. Bxf5 {[%clk 0:02:08]}  Qxf5 {[%clk 0:00:34]} 25. Qxf5 {[%clk 0:02:07]}  exf5 {[%clk 0:00:34]} 26. Rh5 {[%clk 0:02:08]}  Ke7 {[%clk 0:00:31]} 27. Ke2 {[%clk 0:02:08]}  Rcg8 {[%clk 0:00:27]} 28. Rdh1 {[%clk 0:02:01]}  Rxg5 {[%clk 0:00:24]} 29. Rxg5 {[%clk 0:02:01]}  Rxg5 {[%clk 0:00:23]} 30. Rxh7 {[%clk 0:02:01]}  Rg2+ {[%clk 0:00:17]} 31. Kd1 {[%clk 0:02:02]}  Rg1+ {[%clk 0:00:17]} 32. Kc2 {[%clk 0:02:02]}  Ra1 {[%clk 0:00:16]} 33. Kb2 {[%clk 0:02:02]}  Rd1 {[%clk 0:00:15]} 34. Rh2 {[%clk 0:02:02]}  Ke6 {[%clk 0:00:12]} 35. a4 {[%clk 0:02:03]}  Ke5 {[%clk 0:00:10]} 36. Rf2 {[%clk 0:02:01]}  d4 {[%clk 0:00:04]} 37. b5 {[%clk 0:01:52]} 1-0


[Site "https://www.chess.com"]

[Event "Titled Tuesday Blitz May 30 Late 2023"]
[White "Phillips, Rene"]
[Black "The_Straightforward_Rook"]
[WhiteFideId "2056275"]
[WhiteElo "2073"]
[BlackElo "2276"]
[Result "0-1"]
[Round "04"]
[TimeControl "180+2"]
[Date "2023.05.31"]
[WhiteClock "0:02:23"]
[BlackClock "0:02:36"]

1. Nf3 {[%clk 0:03:00]}  Nf6 {[%clk 0:02:57]} 2. d4 {[%clk 0:03:00]}  e6 {[%clk 0:02:56]} 3. Bf4 {[%clk 0:03:01]}  d5 {[%clk 0:02:56]} 4. e3 {[%clk 0:03:01]}  Bd6 {[%clk 0:02:57]} 5. Bg3 {[%clk 0:03:02]}  c5 {[%clk 0:02:56]} 6. Nbd2 {[%clk 0:03:01]}  Qc7 {[%clk 0:02:55]} 7. c3 {[%clk 0:02:55]}  Nbd7 {[%clk 0:02:53]} 8. Bb5 {[%clk 0:02:50]}  O-O {[%clk 0:02:50]} 9. Bxd7 {[%clk 0:02:38]}  Bxd7 {[%clk 0:02:47]} 10. Ne5 {[%clk 0:02:38]}  Bb5 {[%clk 0:02:40]} 11. f4 {[%clk 0:02:31]}  Ne4 {[%clk 0:02:36]} 12. Nxe4 {[%clk 0:02:29]}  dxe4 {[%clk 0:02:37]} 13. Kf2 {[%clk 0:02:23]}  f6 {[%clk 0:02:36]} 0-1


[Site "https://www.chess.com"]

[Event "Titled Tuesday Blitz May 30 Late 2023"]
[White "campochess"]
[Black "Almeida Junior, Alvaro Alves de"]
[BlackFideId "2149974"]
[WhiteElo "2070"]
[BlackElo "2122"]
[Result "1-0"]
[Round "04"]
[TimeControl "180+2"]
[Date "2023.05.31"]
[WhiteClock "0:01:57"]
[BlackClock "0:01:10"]

1. e4 {[%clk 0:02:59]}  c5 {[%clk 0:02:56]} 2. Na3 {[%clk 0:02:57]}  e6 {[%clk 0:02:55]} 3. c3 {[%clk 0:02:54]}  d5 {[%clk 0:02:55]} 4. exd5 {[%clk 0:02:52]}  exd5 {[%clk 0:02:56]} 5. d4 {[%clk 0:02:50]}  Nf6 {[%clk 0:02:56]} 6. Nf3 {[%clk 0:02:49]}  Bd6 {[%clk 0:02:52]} 7. dxc5 {[%clk 0:02:48]}  Bxc5 {[%clk 0:02:53]} 8. Bb5+ {[%clk 0:02:48]}  Bd7 {[%clk 0:02:53]} 9. Qe2+ {[%clk 0:02:46]}  Qe7 {[%clk 0:02:51]} 10. b4 {[%clk 0:02:40]}  Bd6 {[%clk 0:02:47]} 11. O-O {[%clk 0:02:36]}  Bxb5 {[%clk 0:02:03]} 12. Qxb5+ {[%clk 0:02:32]}  Qd7 {[%clk 0:01:59]} 13. Re1+ {[%clk 0:02:30]}  Kf8 {[%clk 0:01:59]} 14. Qd3 {[%clk 0:02:28]}  Nc6 {[%clk 0:01:58]} 15. Nb5 {[%clk 0:02:26]}  a6 {[%clk 0:01:41]} 16. Nxd6 {[%clk 0:02:25]}  Qxd6 {[%clk 0:01:42]} 17. a4 {[%clk 0:02:24]}  Rd8 {[%clk 0:01:33]} 18. Ba3 {[%clk 0:02:24]}  b5 {[%clk 0:01:28]} 19. axb5 {[%clk 0:02:23]}  axb5 {[%clk 0:01:28]} 20. Qxb5 {[%clk 0:02:22]}  Ne4 {[%clk 0:01:29]} 21. Qd3 {[%clk 0:02:20]}  Qg6 {[%clk 0:01:25]} 22. b5+ {[%clk 0:02:18]}  Ne7 {[%clk 0:01:26]} 23. Ne5 {[%clk 0:02:08]}  Qf5 {[%clk 0:01:23]} 24. Nc6 {[%clk 0:02:03]}  Qxf2+ {[%clk 0:01:23]} 25. Kh1 {[%clk 0:02:03]}  Qxe1+ {[%clk 0:01:22]} 26. Rxe1 {[%clk 0:02:01]}  Nf2+ {[%clk 0:01:22]} 27. Kg1 {[%clk 0:02:00]}  Nxd3 {[%clk 0:01:23]} 28. Bxe7+ {[%clk 0:01:59]}  Kg8 {[%clk 0:01:21]} 29. Re3 {[%clk 0:01:58]}  Re8 {[%clk 0:01:10]} 30. Rxd3 {[%clk 0:01:57]} 1-0


[Site "https://www.chess.com"]

[Event "Titled Tuesday Blitz May 30 Late 2023"]
[White "dorpato"]
[Black "Wang, Alexander J"]
[BlackFideId "30955270"]
[WhiteElo "2051"]
[BlackElo "2264"]
[Result "0-1"]
[Round "04"]
[TimeControl "180+2"]
[Date "2023.05.31"]
[WhiteClock "0:00:03"]
[BlackClock "0:00:05"]

1. e4 {[%clk 0:03:00]}  c5 {[%clk 0:03:00]} 2. Nc3 {[%clk 0:03:00]}  e6 {[%clk 0:03:01]} 3. g3 {[%clk 0:02:59]}  Nf6 {[%clk 0:03:01]} 4. Bg2 {[%clk 0:02:59]}  Nc6 {[%clk 0:03:01]} 5. d3 {[%clk 0:02:58]}  Be7 {[%clk 0:02:59]} 6. f4 {[%clk 0:02:57]}  d5 {[%clk 0:02:58]} 7. e5 {[%clk 0:02:56]}  Nd7 {[%clk 0:02:58]} 8. Nf3 {[%clk 0:02:54]}  a6 {[%clk 0:02:55]} 9. O-O {[%clk 0:02:53]}  b5 {[%clk 0:02:52]} 10. d4 {[%clk 0:02:54]}  cxd4 {[%clk 0:02:45]} 11. Ne2 {[%clk 0:02:50]}  Bc5 {[%clk 0:02:43]} 12. Nfxd4 {[%clk 0:02:46]}  Qb6 {[%clk 0:02:38]} 13. Be3 {[%clk 0:02:43]}  Bb7 {[%clk 0:02:10]} 14. Bf2 {[%clk 0:02:30]}  Nxd4 {[%clk 0:02:00]} 15. Nxd4 {[%clk 0:02:27]}  O-O {[%clk 0:01:58]} 16. c3 {[%clk 0:02:26]}  Rac8 {[%clk 0:01:39]} 17. b4 {[%clk 0:01:45]}  Bxd4 {[%clk 0:01:32]} 18. Bxd4 {[%clk 0:01:46]}  Qd8 {[%clk 0:01:27]} 19. Qh5 {[%clk 0:01:34]}  a5 {[%clk 0:01:08]} 20. a3 {[%clk 0:01:25]}  axb4 {[%clk 0:00:55]} 21. axb4 {[%clk 0:01:24]}  Ra8 {[%clk 0:00:55]} 22. Bh3 {[%clk 0:01:22]}  Qe7 {[%clk 0:00:46]} 23. g4 {[%clk 0:00:44]}  Rxa1 {[%clk 0:00:26]} 24. Rxa1 {[%clk 0:00:43]}  Ra8 {[%clk 0:00:26]} 25. Rxa8+ {[%clk 0:00:24]}  Bxa8 {[%clk 0:00:27]} 26. f5 {[%clk 0:00:20]}  Nf8 {[%clk 0:00:16]} 27. f6 {[%clk 0:00:18]}  Qc7 {[%clk 0:00:13]} 28. fxg7 {[%clk 0:00:18]}  Kxg7 {[%clk 0:00:13]} 29. Qg5+ {[%clk 0:00:17]}  Ng6 {[%clk 0:00:14]} 30. Qe3 {[%clk 0:00:15]}  Qc4 {[%clk 0:00:13]} 31. g5 {[%clk 0:00:14]}  Bc6 {[%clk 0:00:11]} 32. Qf2 {[%clk 0:00:12]}  Qd3 {[%clk 0:00:08]} 33. Qf6+ {[%clk 0:00:12]}  Kg8 {[%clk 0:00:09]} 34. Qd8+ {[%clk 0:00:12]}  Kg7 {[%clk 0:00:09]} 35. Qf6+ {[%clk 0:00:12]}  Kg8 {[%clk 0:00:09]} 36. Bxe6 {[%clk 0:00:11]}  Qd1+ {[%clk 0:00:08]} 37. Kg2 {[%clk 0:00:09]}  Qe2+ {[%clk 0:00:09]} 38. Kg1 {[%clk 0:00:10]}  Qe1+ {[%clk 0:00:09]} 39. Kg2 {[%clk 0:00:10]}  fxe6 {[%clk 0:00:09]} 40. Qxe6+ {[%clk 0:00:10]}  Kg7 {[%clk 0:00:10]} 41. Qxc6 {[%clk 0:00:08]}  Nf4+ {[%clk 0:00:09]} 42. Kf3 {[%clk 0:00:07]}  Qe4+ {[%clk 0:00:10]} 43. Kf2 {[%clk 0:00:06]}  Nd3+ {[%clk 0:00:10]} 44. Kg3 {[%clk 0:00:05]}  Qf4+ {[%clk 0:00:10]} 45. Kg2 {[%clk 0:00:05]}  Qg4+ {[%clk 0:00:09]} 46. Kf1 {[%clk 0:00:05]}  Qf3+ {[%clk 0:00:09]} 47. Kg1 {[%clk 0:00:05]}  Nf4 {[%clk 0:00:06]} 48. e6+ {[%clk 0:00:04]}  Kg6 {[%clk 0:00:06]} 49. Qe8+ {[%clk 0:00:04]}  Kf5 {[%clk 0:00:04]} 50. Qf7+ {[%clk 0:00:03]}  Kg4 {[%clk 0:00:05]} 0-1


[Site "https://www.chess.com"]

[Event "Titled Tuesday Blitz May 30 Late 2023"]
[White "NtcPou"]
[Black "Harish, Neeraj"]
[BlackFideId "30958130"]
[WhiteElo "2033"]
[BlackElo "1879"]
[Result "0-1"]
[Round "04"]
[TimeControl "180+2"]
[Date "2023.05.31"]
[WhiteClock "0:01:34"]
[BlackClock "0:00:46"]

1. e4 {[%clk 0:03:00]}  e5 {[%clk 0:02:57]} 2. Nf3 {[%clk 0:03:00]}  Nc6 {[%clk 0:02:58]} 3. Bc4 {[%clk 0:03:00]}  Nf6 {[%clk 0:02:58]} 4. d3 {[%clk 0:03:00]}  Bc5 {[%clk 0:02:57]} 5. O-O {[%clk 0:02:59]}  O-O {[%clk 0:02:57]} 6. Re1 {[%clk 0:02:59]}  d6 {[%clk 0:02:56]} 7. c3 {[%clk 0:02:59]}  a5 {[%clk 0:02:55]} 8. Nbd2 {[%clk 0:02:58]}  h6 {[%clk 0:02:55]} 9. Nf1 {[%clk 0:02:57]}  Ba7 {[%clk 0:02:54]} 10. Ng3 {[%clk 0:02:56]}  Ne7 {[%clk 0:02:47]} 11. d4 {[%clk 0:02:55]}  Ng6 {[%clk 0:02:47]} 12. Be3 {[%clk 0:02:52]}  Re8 {[%clk 0:02:43]} 13. Nf5 {[%clk 0:02:44]}  Be6 {[%clk 0:02:35]} 14. Bxe6 {[%clk 0:02:33]}  Rxe6 {[%clk 0:02:18]} 15. d5 {[%clk 0:02:29]}  Re8 {[%clk 0:02:14]} 16. Bxa7 {[%clk 0:02:29]}  Rxa7 {[%clk 0:02:14]} 17. g3 {[%clk 0:02:25]}  Ra8 {[%clk 0:02:07]} 18. Qc2 {[%clk 0:02:20]}  Qd7 {[%clk 0:02:07]} 19. Kg2 {[%clk 0:02:19]}  Ne7 {[%clk 0:02:02]} 20. Ne3 {[%clk 0:02:12]}  g6 {[%clk 0:01:54]} 21. b4 {[%clk 0:02:12]}  Kg7 {[%clk 0:01:51]} 22. a3 {[%clk 0:02:09]}  c6 {[%clk 0:01:41]} 23. c4 {[%clk 0:02:09]}  axb4 {[%clk 0:01:38]} 24. axb4 {[%clk 0:02:09]}  cxd5 {[%clk 0:01:38]} 25. Nxd5 {[%clk 0:02:03]}  Nexd5 {[%clk 0:01:36]} 26. cxd5 {[%clk 0:02:03]}  Qb5 {[%clk 0:01:30]} 27. Rxa8 {[%clk 0:01:56]}  Rxa8 {[%clk 0:01:30]} 28. Rb1 {[%clk 0:01:52]}  Ra4 {[%clk 0:01:13]} 29. Qc7 {[%clk 0:01:51]}  Rxb4 {[%clk 0:01:08]} 30. Ra1 {[%clk 0:01:51]}  Qb6 {[%clk 0:01:04]} 31. Qb8 {[%clk 0:01:48]}  Nxe4 {[%clk 0:00:59]} 32. Ra8 {[%clk 0:01:47]}  Qxf2+ {[%clk 0:00:59]} 33. Kh3 {[%clk 0:01:46]}  Qf1+ {[%clk 0:00:50]} 34. Kh4 {[%clk 0:01:36]}  g5+ {[%clk 0:00:49]} 35. Kg4 {[%clk 0:01:35]}  Nf6+ {[%clk 0:00:46]} 36. Kf5 {[%clk 0:01:34]}  Qxf3# {[%clk 0:00:46]} 0-1


[Site "https://www.chess.com"]